bitfinex/quotes_BTCUSD_20241223
["timestamp","ask_amount","ask_price","bid_price","bid_amount"]
[1734964871036,0.211577,94528.0,94507.0,0.211624]
[1734964871246,0.1,94522.0,94494.0,0.211653]
[1734964871514,0.1,94513.0,94460.0,0.23883881]
[1734964871708,0.1,94510.0,94485.0,0.211673]
[1734964871914,0.21162,94509.0,94490.0,0.21166]
[1734964872308,0.211614,94512.0,94490.0,0.21166]
[1734964872511,0.01657703,94505.0,94496.0,0.211647]
[1734964873094,0.0137734,94505.0,94490.0,0.21166]
[1734964873255,0.0001604,94505.0,94490.0,0.21166]
[1734964873452,0.0001604,94505.0,94491.0,0.10398632]
[1734964873658,0.0001604,94505.0,94504.0,0.211631]
[1734964873906,0.08,94542.0,94531.0,0.211568]
[1734964874142,0.08016031,94542.0,94527.0,0.211578]
[1734964874544,0.00016031,94542.0,94528.0,0.10398632]
[1734964874767,0.00016031,94542.0,94538.0,0.211554]
[1734964874947,0.00016031,94542.0,94538.0,0.423108]
[1734964875170,0.00016031,94542.0,94540.0,0.21155]
[1734964875367,0.00016031,94542.0,94541.0,0.10398632]
[1734964875909,0.00016031,94542.0,94528.0,0.211575]
[1734964876189,0.1,94541.0,94514.0,0.211608]
[1734964876393,0.00016031,94542.0,94523.0,0.211587]
[1734964876607,0.211548,94541.0,94540.0,0.002]
[1734964876798,0.00016031,94542.0,94540.0,0.002]
[1734964877004,0.00016031,94542.0,94510.0,0.23883881]
[1734964877005,0.00016031,94542.0,94513.0,0.02140949]
[1734964877211,0.00016031,94542.0,94533.0,0.211564]
[1734964877415,0.004,94541.0,94540.0,0.21155]
[1734964877640,0.004,94541.0,94535.0,0.211561]
[1734964877857,0.004,94541.0,94536.0,0.10398632]
[1734964878049,0.004,94541.0,94537.0,0.211557]
[1734964878251,0.00254786,94541.0,94538.0,0.15880421]
[1734964878453,0.00254786,94541.0,94539.0,0.211552]
[1734964878626,0.00254786,94541.0,94540.0,0.10398632]
[1734964878790,0.211475,94574.0,94540.0,0.10398632]
[1734964878996,0.0474,94589.0,94557.0,0.23883881]
[1734964879195,0.1001722,94600.0,94574.0,0.211472]
[1734964879196,0.0001722,94600.0,94574.0,0.211472]
[1734964879422,0.0001722,94600.0,94575.0,0.10398632]
[1734964879624,0.211418,94599.0,94575.0,0.10398632]
[1734964879822,0.1,94593.0,94571.0,0.21148]
[1734964880021,0.211439,94590.0,94571.0,0.21148]
[1734964880243,0.211439,94590.0,94567.0,0.211488]
[1734964880244,0.004,94578.0,94575.0,0.211471]
[1734964880666,0.21159334,94593.0,94562.0,0.02110276]
[1734964880867,0.21159334,94593.0,94540.0,0.01446617]
[1734964880868,0.1,94581.0,94540.0,0.01446617]
[1734964881115,0.1,94581.0,94530.0,0.45041081]
[1734964881116,0.1,94571.0,94541.0,0.31553332]
[1734964881324,0.1,94585.0,94550.0,0.23883881]
[1734964881566,0.211459,94581.0,94561.0,0.211501]
[1734964881848,0.211459,94581.0,94562.0,0.211501]
[1734964882046,0.1,94585.0,94567.0,0.211488]
[1734964882047,0.211454,94584.0,94567.0,0.211488]
[1734964882424,0.211467,94577.0,94555.0,0.211515]
[1734964882633,0.1,94571.0,94540.0,0.02122778]
[1734964882835,0.311472,94575.0,94551.0,0.211524]
[1734964883179,0.211476,94573.0,94551.0,0.423049]
[1734964883315,0.0489,94576.0,94552.0,0.10398632]
[1734964883724,0.01656604,94571.0,94554.0,0.211519]
[1734964884054,0.01656604,94571.0,94561.0,0.423005]
[1734964884262,0.01656604,94571.0,94563.0,0.211497]
[1734964884495,0.01656604,94571.0,94556.0,0.211513]
[1734964885076,0.01656604,94571.0,94557.0,0.211512]
[1734964885244,0.01656604,94571.0,94510.0,0.23883881]
[1734964885245,0.1,94566.0,94510.0,0.23883881]
[1734964885457,0.1,94557.0,94529.0,0.0211902]
[1734964885706,0.0469,94538.0,94500.0,4e-05]
[1734964885904,0.1,94519.0,94500.0,4e-05]
[1734964886173,0.31162,94509.0,94500.0,4e-05]
[1734964886378,0.211606,94515.0,94500.0,4e-05]
[1734964886621,0.211593,94522.0,94502.0,0.211635]
[1734964886791,0.211559,94536.0,94502.0,0.211635]
[1734964887020,0.211614,94512.0,94500.0,0.00057187]
[1734964887249,0.08898632,94535.0,94500.0,0.00057187]
[1734964887435,0.211579,94528.0,94501.0,0.10398632]
[1734964887644,0.211579,94528.0,94502.0,0.01075582]
[1734964887874,0.211557,94537.0,94503.0,0.10398632]
[1734964888055,0.211557,94537.0,94518.0,0.211598]
[1734964888257,0.0469,94538.0,94524.0,0.211586]
[1734964888464,0.0469,94538.0,94523.0,0.211586]
[1734964888901,0.0469,94538.0,94532.0,0.211566]
[1734964889105,0.01657184,94535.0,94532.0,0.211566]
[1734964889308,0.01657184,94535.0,94532.0,0.423134]
[1734964889687,0.01657184,94535.0,94532.0,0.211566]
[1734964889838,0.01657184,94535.0,94534.0,0.211564]
[1734964890054,0.01657184,94535.0,94534.0,0.31608219]
[1734964890371,0.0814,94548.0,94534.0,0.00053187]
[1734964890749,0.10398632,94541.0,94534.0,0.00053187]
[1734964890957,0.211557,94537.0,94534.0,0.00053187]
[1734964891157,0.211629,94505.0,94500.0,4e-05]
[1734964891497,0.0828,94505.0,94500.0,4e-05]
[1734964891817,0.294429,94505.0,94500.0,4e-05]
[1734964892148,0.506058,94505.0,94500.0,4e-05]
[1734964892353,0.294429,94505.0,94500.0,4e-05]
[1734964892721,0.211631,94504.0,94500.0,4e-05]
[1734964892892,0.211631,94504.0,94500.0,0.00304]
[1734964893096,0.211635,94502.0,94500.0,0.00304]
[1734964893306,0.10530914,94501.0,94500.0,0.00304]
[1734964893508,0.10530917,94501.0,94500.0,0.00304]
[1734964893665,0.00053392,94505.0,94500.0,4e-05]
[1734964893879,0.00053392,94505.0,94501.0,0.211637]
[1734964894087,0.04912892,94524.0,94501.0,0.0211677]
[1734964894478,0.21159,94522.0,94501.0,0.00016031]
[1734964894891,0.01,94505.0,94502.0,0.211635]
[1734964895300,0.01,94505.0,94501.0,0.00016031]
[1734964895595,0.01,94505.0,94502.0,0.31562132]
[1734964895814,0.23883881,94580.0,94505.0,0.23883881]
[1734964895815,0.0013221,94562.0,94505.0,0.23883881]
[1734964896013,0.10398632,94540.0,94501.0,0.00016031]
[1734964896217,0.0013221,94562.0,94501.0,0.00016031]
[1734964896218,0.211624,94507.0,94506.0,0.00704819]
[1734964896423,0.21162,94509.0,94506.0,0.00704819]
[1734964896624,0.21162,94509.0,94501.0,0.00016031]
[1734964896773,0.211607,94515.0,94501.0,0.00016031]
[1734964897128,0.1,94533.0,94501.0,0.00016031]
[1734964897129,0.211618,94510.0,94501.0,0.00016031]
[1734964897307,0.211635,94502.0,94501.0,0.00016031]
[1734964898031,0.31562132,94502.0,94501.0,0.00016031]
[1734964899365,0.211613,94513.0,94501.0,0.00016031]
[1734964899567,0.001,94502.0,94501.0,0.00016031]
[1734964900174,0.211605,94516.0,94501.0,0.00016031]
[1734964900175,0.211624,94508.0,94501.0,0.00016031]
[1734964900621,0.211635,94502.0,94501.0,0.00016031]
[1734964900772,0.31562132,94502.0,94501.0,0.00016031]
[1734964902396,0.212635,94502.0,94501.0,0.00016031]
[1734964902740,0.001,94502.0,94501.0,0.00016031]
[1734964903504,0.10530894,94502.0,94501.0,0.00016031]
[1734964903916,0.360637,94501.0,94500.0,4e-05]
[1734964904216,0.46462332,94501.0,94500.0,0.0001257]
[1734964904362,0.260637,94501.0,94500.0,0.0001257]
[1734964904774,0.049,94501.0,94500.0,0.0001257]
[1734964904959,0.15298632,94501.0,94500.0,0.0001257]
[1734964905158,0.049,94501.0,94500.0,0.0001257]
[1734964905412,0.01657998,94502.0,94500.0,0.0001257]
[1734964905872,0.004,94501.0,94500.0,0.0001257]
[1734964906075,0.004,94501.0,94500.0,0.10411202]
[1734964906304,0.0797,94536.0,94502.0,0.211635]
[1734964906518,0.1,94534.0,94464.0,0.1]
[1734964906722,0.211647,94497.0,94467.0,0.1505502]
[1734964906942,0.10398632,94527.0,94483.0,0.02160724]
[1734964907149,0.2116,94518.0,94485.0,0.211673]
[1734964907353,0.10398632,94527.0,94503.0,0.211632]
[1734964907527,0.10530876,94527.0,94499.0,0.21164]
[1734964907763,0.10530876,94527.0,94501.0,0.211637]
[1734964907972,0.211606,94516.0,94500.0,0.021164]
[1734964908596,0.10398632,94527.0,94500.0,0.026164]
[1734964908813,0.00132244,94526.0,94500.0,0.13015032]
[1734964909023,0.211552,94540.0,94521.0,0.211592]
[1734964909238,0.0777,94558.0,94522.0,0.02328792]
[1734964909418,0.01657434,94537.0,94524.0,0.211586]
[1734964909655,0.00033162,94541.0,94525.0,0.10398632]
[1734964909870,0.00033162,94541.0,94538.0,0.211555]
[1734964910085,0.00033162,94541.0,94540.0,0.21155]
[1734964910290,0.09210725,94569.0,94568.0,0.211488]
[1734964910702,0.09210725,94569.0,94541.0,0.211548]
[1734964910933,0.09210725,94569.0,94568.0,0.10398632]
[1734964911139,0.09210725,94569.0,94568.0,0.13553425]
[1734964911555,0.00016028,94570.0,94569.0,0.211485]
[1734964911835,0.00016028,94570.0,94569.0,0.31547132]
[1734964912056,0.0001722,94600.0,94581.0,0.211457]
[1734964912469,0.0001722,94600.0,94569.0,0.10398632]
[1734964912470,0.0001722,94600.0,94586.0,0.211446]
[1734964912681,0.211425,94596.0,94576.0,0.211468]
[1734964912858,0.31541132,94596.0,94576.0,0.211468]
[1734964913064,0.211427,94595.0,94568.0,0.05315729]
[1734964913280,0.00070635,94600.0,94569.0,0.10398632]
[1734964913509,0.00070635,94600.0,94580.0,0.23883881]
[1734964913510,0.002,94598.0,94580.0,0.23883881]
[1734964913657,0.002,94598.0,94596.0,0.211424]
[1734964913866,0.002,94598.0,94597.0,0.14627142]
[1734964914091,0.002,94598.0,94590.0,0.211436]
[1734964914301,0.002,94598.0,94569.0,0.1]
[1734964914302,0.002,94598.0,94597.0,0.211423]
[1734964914711,0.00070635,94600.0,94597.0,0.211423]
[1734964915075,0.00070635,94600.0,94591.0,0.211436]
[1734964915076,0.00070635,94600.0,94572.0,0.211479]
[1734964915274,0.00070635,94600.0,94590.0,0.23883881]
[1734964915493,0.00070635,94600.0,94598.0,0.211419]
[1734964915911,0.00070635,94600.0,94599.0,0.12471353]
[1734964916426,0.00070635,94600.0,94590.0,0.23883881]
[1734964916427,0.01070635,94600.0,94571.0,0.21148]
[1734964916653,0.10398632,94599.0,94574.0,0.0209644]
[1734964916808,0.10398632,94599.0,94586.0,0.211447]
[1734964917009,0.01070635,94600.0,94586.0,0.211447]
[1734964917345,0.211418,94599.0,94582.0,0.211456]
[1734964917758,0.11469267,94600.0,94583.0,0.22944321]
[1734964918004,0.11469267,94600.0,94589.0,0.211439]
[1734964918005,0.01656056,94595.0,94589.0,0.211439]
[1734964918361,0.01656056,94595.0,94589.0,0.422879]
[1734964918578,0.01070635,94600.0,94596.0,0.211423]
[1734964918938,0.01070635,94600.0,94592.0,0.211433]
[1734964919141,0.01070635,94600.0,94572.0,0.311477]
[1734964919142,0.21142,94598.0,94552.0,0.1]
[1734964919354,0.21142,94598.0,94540.0,0.49968781]
[1734964919355,0.10530773,94597.0,94555.0,0.211517]
[1734964919558,0.211425,94596.0,94567.0,0.211489]
[1734964919764,0.211446,94587.0,94570.0,0.02099898]
[1734964919961,0.10530782,94595.0,94570.0,0.02099898]
[1734964919962,0.211429,94594.0,94571.0,0.211481]
[1734964920162,0.211434,94592.0,94571.0,0.211481]
[1734964920368,0.211464,94579.0,94560.0,0.211505]
[1734964920664,0.211418,94599.0,94565.0,0.211493]
[1734964920873,0.10530799,94598.0,94570.0,0.211482]
[1734964921073,0.211442,94589.0,94570.0,0.211482]
[1734964921275,0.31542832,94589.0,94570.0,0.211482]
[1734964921479,0.01656256,94585.0,94567.0,0.211489]
[1734964921679,0.01656256,94585.0,94552.0,0.02139287]
[1734964921880,0.01656256,94585.0,94553.0,0.10398632]
[1734964922192,0.211452,94584.0,94567.0,0.211488]
[1734964922400,0.10398632,94583.0,94563.0,0.211497]
[1734964922816,0.10398632,94583.0,94567.0,0.002]
[1734964922817,0.00132177,94582.0,94567.0,0.002]
[1734964923043,0.10398632,94581.0,94567.0,0.002]
[1734964923252,0.01070635,94600.0,94567.0,0.002]
[1734964923473,0.21143,94594.0,94576.0,0.211468]
[1734964923728,0.10398632,94593.0,94574.0,0.211474]
[1734964924010,0.211451,94585.0,94567.0,0.002]
[1734964924457,0.211451,94585.0,94541.0,0.1]
[1734964924458,0.31543732,94585.0,94569.0,0.211485]
[1734964924664,0.10530787,94584.0,94522.0,0.1]
[1734964924872,0.0474,94580.0,94527.0,0.211579]
[1734964925072,0.0474,94580.0,94544.0,0.1]
[1734964925073,0.15138632,94580.0,94544.0,0.1]
[1734964925286,0.0474,94580.0,94571.0,0.21148]
[1734964925498,0.0474,94580.0,94568.0,0.211488]
[1734964925720,0.422897,94586.0,94566.0,0.211492]
[1734964925970,0.211459,94581.0,94566.0,0.211492]
[1734964926166,0.10530794,94580.0,94557.0,0.211512]
[1734964926382,0.10530794,94580.0,94526.0,0.1]
[1734964926598,0.10530794,94580.0,94541.0,0.01773052]
[1734964926599,0.211476,94574.0,94541.0,0.01773052]
[1734964926856,0.31546232,94574.0,94556.0,0.211514]
[1734964927066,0.003,94584.0,94557.0,0.12513772]
[1734964927285,0.211438,94591.0,94557.0,0.12513772]
[1734964927286,0.211438,94591.0,94557.0,0.10398632]
[1734964927507,0.211438,94591.0,94568.0,0.003]
[1734964927720,0.211438,94591.0,94551.0,0.211526]
[1734964927721,0.1,94582.0,94531.0,0.21157]
[1734964927943,0.1,94570.0,94550.0,0.211527]
[1734964928165,0.211497,94564.0,94550.0,0.211527]
[1734964928384,0.211505,94561.0,94557.0,0.002]
[1734964928606,0.211506,94560.0,94557.0,0.002]
[1734964928824,0.211506,94560.0,94502.0,0.211635]
[1734964928825,0.1,94544.0,94502.0,0.211635]
[1734964929040,0.02620126,94559.0,94503.0,0.10398632]
[1734964929041,0.211568,94533.0,94503.0,0.10398632]
[1734964929242,0.211568,94533.0,94519.0,0.211595]
[1734964929470,0.211557,94537.0,94512.0,0.211613]
[1734964929684,0.211517,94555.0,94513.0,0.10398632]
[1734964929910,0.1,94542.0,94500.0,0.01831287]
[1734964930125,0.21157,94532.0,94502.0,0.211635]
[1734964930341,0.21155,94540.0,94522.0,0.211589]
[1734964930545,0.10398632,94539.0,94522.0,0.211589]
[1734964930789,0.10398632,94539.0,94512.0,0.02157008]
[1734964930999,0.10398632,94539.0,94513.0,0.211609]
[1734964931225,0.21156,94536.0,94518.0,0.211597]
[1734964931773,0.211555,94538.0,94522.0,0.004]
[1734964932021,0.10398632,94537.0,94522.0,0.004]
[1734964932223,0.211548,94541.0,94523.0,0.423175]
[1734964932427,0.1,94542.0,94519.0,0.211597]
[1734964932428,0.31553632,94540.0,94519.0,0.211597]
[1734964932668,0.31553632,94540.0,94512.0,0.02157008]
[1734964932669,0.1,94534.0,94512.0,0.02157008]
[1734964932834,0.23883881,94550.0,94512.0,0.02157008]
[1734964932835,0.211588,94523.0,94512.0,0.02157008]
[1734964933173,0.31158,94527.0,94510.0,0.211616]
[1734964933390,0.41556632,94527.0,94510.0,0.211616]
[1734964933596,0.0824,94533.0,94510.0,0.0423244]
[1734964933811,0.076,94549.0,94518.0,0.002]
[1734964934019,0.01657153,94543.0,94519.0,0.10398632]
[1734964934391,0.01657153,94543.0,94539.0,0.211552]
[1734964934881,0.076,94549.0,94546.0,0.211537]
[1734964935098,0.01656809,94543.0,94532.0,0.02110645]
[1734964935309,0.01656809,94543.0,94538.0,0.211555]
[1734964935515,0.1,94557.0,94545.0,0.211539]
[1734964935723,0.211416,94601.0,94560.0,0.211504]
[1734964935724,0.21147,94576.0,94560.0,0.211504]
[1734964935928,0.10530801,94575.0,94539.0,0.02326615]
[1734964936131,0.211474,94574.0,94558.0,0.423017]
[1734964936343,0.076,94579.0,94541.0,0.15]
[1734964936551,0.2115942,94597.0,94561.0,0.02109585]
[1734964936760,0.1,94595.0,94562.0,0.11649454]
[1734964936965,0.1,94595.0,94584.0,0.211451]
[1734964937583,0.1,94595.0,94588.0,0.211441]
[1734964938205,0.1,94595.0,94592.0,0.211432]
[1734964938383,0.1,94595.0,94563.0,0.211499]
[1734964938384,0.1,94592.0,94541.0,0.211548]
[1734964938630,0.1,94592.0,94562.0,0.10398632]
[1734964938831,0.0001712,94597.0,94562.0,0.10398632]
[1734964938832,0.0001712,94597.0,94563.0,0.01250822]
[1734964939041,0.1,94595.0,94585.0,0.211448]
[1734964939451,0.01656122,94589.0,94563.0,0.01250822]
[1734964939656,0.1,94592.0,94560.0,0.211505]
[1734964939905,0.1,94592.0,94567.0,0.211488]
[1734964939906,0.10398632,94591.0,94567.0,0.211488]
[1734964940079,0.0001712,94597.0,94592.0,0.003]
[1734964940686,0.0001712,94597.0,94590.0,0.211437]
[1734964940900,0.001,94592.0,94584.0,0.21145]
[1734964941110,0.00761712,94591.0,94568.0,0.10398632]
[1734964941314,0.1,94596.0,94574.0,0.211474]
[1734964941537,0.211427,94595.0,94574.0,0.42310828]
[1734964941744,0.211427,94595.0,94592.0,0.002]
[1734964941947,0.211432,94593.0,94592.0,0.002]
[1734964942174,0.0001712,94597.0,94592.0,0.002]
[1734964942705,0.0001712,94597.0,94592.0,0.213433]
[1734964942903,0.0001712,94597.0,94592.0,0.22508586]
[1734964943107,0.0001712,94597.0,94592.0,0.211433]
[1734964943338,0.001,94596.0,94592.0,0.211433]
[1734964943689,0.0001712,94597.0,94588.0,0.03759333]
[1734964943895,0.2115962,94597.0,94574.0,0.00016028]
[1734964944097,0.0011712,94597.0,94592.0,0.006]
[1734964944281,0.22798582,94595.0,94592.0,0.006]
[1734964944478,0.10398632,94594.0,94574.0,0.01670013]
[1734964944687,0.1,94592.0,94575.0,0.02108405]
[1734964944880,0.20398632,94592.0,94575.0,0.02108405]
[1734964945081,0.01655882,94595.0,94575.0,0.02108405]
[1734964945307,0.211445,94588.0,94574.0,0.01670013]
[1734964945506,0.211445,94588.0,94574.0,0.00016028]
[1734964945681,0.211454,94584.0,94574.0,0.00016028]
[1734964945889,0.211445,94587.0,94574.0,0.00016028]
[1734964946087,0.422892,94587.0,94574.0,0.00016028]
[1734964946361,0.1,94578.0,94574.0,0.00016028]
[1734964946553,0.211556,94538.0,94501.0,0.18795917]
[1734964946757,0.10398632,94537.0,94519.0,0.01700132]
[1734964946962,0.1,94546.0,94523.0,0.02160702]
[1734964947168,0.0765,94548.0,94524.0,0.10398632]
[1734964947372,0.0765,94563.0,94543.0,0.211541]
[1734964947577,0.0765,94563.0,94548.0,0.211532]
[1734964947791,0.0765,94563.0,94543.0,0.211541]
[1734964947792,0.211501,94562.0,94543.0,0.211541]
[1734964947992,0.211501,94562.0,94543.0,0.23261023]
[1734964948193,0.1,94558.0,94545.0,0.211539]
[1734964948388,0.0765,94563.0,94545.0,0.211539]
[1734964948588,0.1765,94563.0,94545.0,0.211539]
[1734964948734,0.1,94558.0,94534.0,0.211562]
[1734964948929,0.1,94558.0,94466.0,0.4]
[1734964948930,0.10398632,94557.0,94492.0,0.211655]
[1734964949137,0.21155,94540.0,94525.0,0.00016022]
[1734964949380,0.00132227,94539.0,94525.0,0.00016022]
[1734964949583,0.211528,94551.0,94533.0,0.211564]
[1734964949801,0.211526,94551.0,94548.0,0.001]
[1734964950026,0.211503,94561.0,94548.0,0.001]
[1734964950365,0.1765,94563.0,94540.0,0.211549]
[1734964950366,0.1,94551.0,94540.0,0.211549]
[1734964950560,0.211528,94550.0,94531.0,0.423138]
[1734964950691,0.211546,94542.0,94525.0,0.00216022]
[1734964950893,0.00132214,94541.0,94525.0,0.00016022]
[1734964951117,0.1,94551.0,94526.0,0.211581]
[1734964951318,0.1,94543.0,94526.0,0.211581]
[1734964951726,0.211546,94542.0,94526.0,0.211581]
[1734964952262,0.211546,94542.0,94526.0,0.24458289]
[1734964952402,0.211539,94545.0,94525.0,0.00016022]
[1734964952581,0.1,94543.0,94525.0,0.00016022]
[1734964952794,0.211546,94542.0,94525.0,0.00216022]
[1734964953233,0.211546,94542.0,94526.0,0.211581]
[1734964953436,0.211546,94542.0,94525.0,0.00216022]
[1734964953437,0.211523,94552.0,94527.0,0.02137412]
[1734964953643,0.211528,94550.0,94535.0,0.21156]
[1734964953845,0.10398632,94549.0,94535.0,0.21156]
[1734964954047,0.1,94553.0,94535.0,0.21156]
[1734964954226,0.311523,94552.0,94535.0,0.21156]
[1734964954401,0.211523,94552.0,94535.0,0.21156]
[1734964954616,0.311523,94552.0,94535.0,0.423121]
[1734964954828,0.211526,94551.0,94536.0,0.211557]
[1734964955234,0.1,94543.0,94536.0,0.211557]
[1734964955427,0.1,94543.0,94527.0,8.56e-05]
[1734964955428,0.221546,94542.0,94527.0,8.56e-05]
[1734964955707,0.20398632,94543.0,94527.0,8.56e-05]
[1734964955708,0.20398632,94543.0,94528.0,0.211577]
[1734964955892,0.1,94532.0,94527.0,8.56e-05]
[1734964956094,0.1,94528.0,94527.0,8.56e-05]
[1734964956311,0.10530877,94528.0,94527.0,8.56e-05]
[1734964956515,0.0774,94537.0,94527.0,8.56e-05]
[1734964956717,0.211573,94530.0,94527.0,8.56e-05]
[1734964956928,0.1,94529.0,94528.0,0.001]
[1734964957104,0.1,94533.0,94528.0,0.001]
[1734964957324,0.1,94529.0,94527.0,8.56e-05]
[1734964957755,0.35097347,94528.0,94527.0,8.56e-05]
[1734964957950,0.1,94526.0,94525.0,0.00016022]
[1734964958130,0.20530892,94526.0,94525.0,0.00016022]
[1734964958330,0.28600892,94526.0,94525.0,0.00016022]
[1734964958545,0.28468632,94526.0,94525.0,0.00016022]
[1734964958900,0.1,94492.0,94473.0,0.02076101]
[1734964959159,0.10530925,94491.0,94479.0,0.00053392]
[1734964959362,0.211683,94481.0,94479.0,0.00053392]
[1734964959535,0.20398632,94480.0,94479.0,0.00053392]
[1734964959758,0.20530929,94480.0,94479.0,0.00053392]
[1734964959961,0.20398632,94480.0,94479.0,0.00053392]
[1734964960166,0.0013231,94480.0,94479.0,0.00053392]
[1734964960447,0.23883881,94520.0,94479.0,0.00053392]
[1734964960629,0.10398632,94498.0,94480.0,0.211685]
[1734964961098,0.1,94491.0,94479.0,0.00453392]
[1734964961570,0.28713881,94510.0,94460.0,0.01549959]
[1734964961571,0.1,94482.0,94460.0,0.01549959]
[1734964961796,0.34414796,94490.0,94458.0,8.59e-05]
[1734964961797,0.1,94486.0,94458.0,8.59e-05]
[1734964962021,0.10398632,94486.0,94472.0,0.211702]
[1734964962308,0.10398632,94486.0,94458.0,0.01523428]
[1734964962309,0.00053369,94491.0,94481.0,0.211681]
[1734964962762,0.00053369,94491.0,94458.0,8.59e-05]
[1734964962979,0.00053369,94491.0,94475.0,0.211695]
[1734964963215,0.003,94486.0,94480.0,0.211683]
[1734964963440,0.01657998,94483.0,94460.0,0.45056781]
[1734964963677,0.00053369,94491.0,94472.0,0.01573527]
[1734964963969,0.01657871,94478.0,94464.0,0.0211589]
[1734964964211,0.01657871,94478.0,94465.0,0.10398632]
[1734964964445,0.00053369,94491.0,94466.0,0.211716]
[1734964964688,0.01658009,94483.0,94467.0,0.211714]
[1734964964948,0.10398632,94482.0,94458.0,8.59e-05]
[1734964965063,0.1,94479.0,94458.0,8.59e-05]
[1734964965265,0.10398632,94478.0,94458.0,8.59e-05]
[1734964965491,0.211723,94464.0,94458.0,8.59e-05]
[1734964965690,0.1,94470.0,94460.0,0.004]
[1734964965929,0.1,94470.0,94461.0,0.211727]
[1734964966448,0.1,94470.0,94461.0,0.137727]
[1734964966652,0.1,94470.0,94458.0,8.59e-05]
[1734964967047,0.1255,94476.0,94458.0,8.59e-05]
[1734964967256,0.1,94470.0,94461.0,0.001]
[1734964967632,0.1,94469.0,94461.0,0.001]
[1734964967832,0.211702,94473.0,94461.0,0.001]
[1734964968411,0.1,94469.0,94458.0,8.59e-05]
[1734964968646,0.1,94466.0,94458.0,8.59e-05]
[1734964968855,0.1,94459.0,94458.0,8.59e-05]
[1734964969056,0.1,94446.0,94416.0,0.0673]
[1734964969237,0.25520985,94445.0,94417.0,0.0213356]
[1734964969437,0.46564932,94445.0,94417.0,0.0213356]
[1734964970239,0.46618268,94445.0,94417.0,0.0213356]
[1734964970450,0.46618268,94445.0,94444.0,0.0010859]
[1734964970655,0.00053336,94445.0,94444.0,0.0010859]
[1734964971064,0.00053336,94445.0,94444.0,0.02237169]
[1734964971291,0.00053336,94445.0,94444.0,0.0010859]
[1734964971495,0.00053336,94445.0,94436.0,0.211782]
[1734964971713,0.00053336,94445.0,94437.0,0.02169812]
[1734964971894,0.10451968,94445.0,94423.0,0.21181]
[1734964972094,0.211765,94444.0,94430.0,0.02084589]
[1734964972543,0.10451968,94445.0,94430.0,0.02084589]
[1734964972746,0.211765,94444.0,94437.0,0.003]
[1734964973105,0.211778,94439.0,94437.0,0.003]
[1734964973304,0.211778,94439.0,94430.0,0.02084589]
[1734964974519,0.423556,94439.0,94430.0,0.02084589]
[1734964974728,0.10398632,94438.0,94420.0,0.211817]
[1734964974941,0.12057312,94438.0,94420.0,0.211817]
[1734964975176,0.12057312,94438.0,94437.0,0.001]
[1734964975592,0.00053336,94445.0,94424.0,0.211808]
[1734964975808,0.1,94442.0,94429.0,0.211798]
[1734964976008,0.00053336,94445.0,94433.0,0.0020859]
[1734964976224,0.211767,94444.0,94433.0,0.0020859]
[1734964976434,0.00053336,94445.0,94433.0,8.59e-05]
[1734964976883,0.00053336,94445.0,94434.0,0.211788]
[1734964977086,0.00053336,94445.0,94433.0,8.59e-05]
[1734964977295,0.00153336,94445.0,94433.0,0.2118749]
[1734964977667,0.00153336,94445.0,94433.0,0.2108749]
[1734964978063,0.00153336,94445.0,94433.0,0.21179]
[1734964978264,0.10551968,94445.0,94432.0,8.59e-05]
[1734964978642,0.211765,94444.0,94432.0,8.59e-05]
[1734964979062,0.211778,94439.0,94432.0,8.59e-05]
[1734964979287,0.10530989,94438.0,94432.0,8.59e-05]
[1734964979493,0.211786,94435.0,94432.0,8.59e-05]
[1734964979821,0.1,94440.0,94432.0,8.59e-05]
[1734964980259,0.211768,94443.0,94432.0,8.59e-05]
[1734964980459,0.1,94440.0,94433.0,8.57e-05]
[1734964981088,0.211765,94444.0,94433.0,8.57e-05]
[1734964981290,0.10053336,94445.0,94433.0,8.57e-05]
[1734964981497,0.00053336,94445.0,94425.0,0.211807]
[1734964981703,0.00053336,94445.0,94420.0,0.23883881]
[1734964981704,0.00053336,94445.0,94426.0,0.10398632]
[1734964981877,0.211776,94440.0,94421.0,0.211816]
[1734964982080,0.00053336,94445.0,94432.0,0.001]
[1734964982276,0.211765,94444.0,94432.0,0.001]
[1734964982552,0.00053336,94445.0,94427.0,0.02075411]
[1734964982763,0.00053336,94445.0,94437.0,0.21178]
[1734964982967,0.00153336,94445.0,94433.0,0.211788]
[1734964983352,0.1,94443.0,94416.0,0.0673]
[1734964983563,0.1,94443.0,94423.0,0.02085594]
[1734964983748,0.1,94443.0,94431.0,0.211793]
[1734964983949,0.1,94443.0,94428.0,0.211799]
[1734964983950,0.311768,94443.0,94428.0,0.211799]
[1734964984153,0.00053336,94445.0,94416.0,0.08280774]
[1734964984154,0.1,94433.0,94416.0,0.08280774]
[1734964984389,0.1,94420.0,94416.0,0.0673]
[1734964984541,0.311822,94419.0,94416.0,0.0673]
[1734964984733,0.523644,94419.0,94416.0,0.0673]
[1734964984960,0.311822,94419.0,94416.0,0.0673]
[1734964985186,0.1,94417.0,94416.0,0.0673]
[1734964985423,0.311862,94401.0,94362.0,0.211948]
[1734964985639,0.46514832,94401.0,94367.0,0.211937]
[1734964985840,0.46514832,94401.0,94367.0,0.2331995]
[1734964986252,0.46514832,94401.0,94363.0,0.2120306]
[1734964986522,0.46514832,94401.0,94363.0,8.56e-05]
[1734964986652,0.54398135,94401.0,94363.0,8.56e-05]
[1734964986874,0.1783,94370.0,94363.0,8.56e-05]
[1734964987081,0.0783,94370.0,94363.0,8.56e-05]
[1734964987272,0.1,94401.0,94363.0,8.56e-05]
[1734964987273,0.1,94373.0,94363.0,8.56e-05]
[1734964987867,0.1,94370.0,94363.0,8.56e-05]
[1734964988072,0.0783,94387.0,94364.0,0.211945]
[1734964988260,0.0005327,94370.0,94363.0,8.56e-05]
[1734964988911,0.0005327,94370.0,94364.0,0.211945]
[1734964989717,0.0005327,94370.0,94363.0,8.56e-05]
[1734964991331,0.0005327,94370.0,94364.0,0.003]